Cogmind - Beta 10 @@@ ROGUE MODE // 2020.09.17 @ 15:16:27 // Winter2019/RPGLIKE Player: Hermelin Result: Destroyed by Y7-ZYA(z) with Zionite Laser-S Performance ------------- Evolutions (4) 2000 Regions Visited (22) 4400 Robots Destroyed (386) 1930 Value Destroyed (11367) 11367 Prototype IDs (247) 4940 Alien Tech Used (1) 200 Bonus (6531) 6531 TOTAL SCORE: 31368 Bonus ------- High Alert Combat Kills 1490 Follower Combat Kills 474 Entered Garrisons 400 Used RIF Installer 1000 Aligned with FarCom 300 Met Data Miner 300 Used Data Conduit 3000 Friendly Fire -433 Cogmind --------- Core Integrity 0/1350 Matter 180/300 Energy 1368/2395 System Corruption 0% Temperature Cool (42) Movement Hovering (65) Location -6/Deep Caves Parts ------- > --- POWER (2) -------- Makeshift Power Source Antimatter Reactor > --- PROPULSION (3) --- Improved Gravmag System Combat Airjet Combat Airjet > --- UTILITY (11) ----- Experimental Energy Well Experimental Energy Well Experimental Signal Interpreter Experimental Melee Analysis Suite Experimental Core Analyzer Advanced Armor Integrity Analyzer Improved Actuator Array Advanced Transmission Jammer Improved Shield Generator > --- WEAPON (4) ------- 8R-AWN's Boregun 8R-AWN's Boregun Power Maul Kinetic Spear > --- INVENTORY (5) ---- Advanced Hacking Suite System Purifier Mobile Refinery Mk. CCLXVII Master Tearclaws Peak State ------------ > --- POWER ------------ Antimatter Reactor > --- PROPULSION ------- Improved Gravmag System Combat Airjet Combat Airjet > --- UTILITY ---------- Experimental Energy Well Experimental Energy Well Advanced Signal Interpreter Advanced Core Analyzer Advanced Armor Integrity Analyzer Advanced Weapon Cycler Advanced Transmission Jammer 8R-AWN's Armor/EX Improved Shield Generator Makeshift System Shield > --- WEAPON ----------- 8R-AWN's Boregun 8R-AWN's Boregun Heavy Pick Kinetic Spear > --- INVENTORY -------- Improved Actuator Array System Purifier Power Maul Master Tearclaws [Rating: 136] Favorites ----------- Power Cooled Ion Engine Engine Cooled Ion Engine Power Core Micro Nuclear Core Reactor Antimatter Reactor Propulsion Combat Airjet Treads Light Treads Leg Advanced Myomer Leg Hover Unit Combat Airjet Utility Medium Armor Plating Device Advanced Weapon Cycler Storage Experimental Energy Well Processor Advanced Core Analyzer Hackware Makeshift System Shield Protection Medium Armor Plating Weapon 8R-AWN's Boregun Energy Gun EM Pulse Gun Ballistic Gun 8R-AWN's Boregun Launcher Rocket Launcher Impact Weapon Power Maul Slashing Weapon Makeshift Axe Piercing Weapon Heavy Pick Special Melee Weapon Improved Datajack Build | -11 -10 -10 -9 -9 -9 -8 -8 -8 -8 -8 -7 -7 -7 -7 -7 -7 -6 -6 -6 -6 -6 -6 ------- Run | Scr Mat Min Mat Min Exi Min Mat Gar Mat Gar Fac Was Fac Low Low Dat Pro Fac Low Low Zio Dee Slots Evolved 15 | 3 3 . 3 2 . . 1 . . 1 . . . . . . 1 . . . 1 . Power 1 | . . . . . . . . . . . . . . . . . . . . . 1 . Propulsion 2 | 1 . . . 1 . . . . . . . . . . . . . . . . . . Utility 10 | 1 2 . 3 1 . . 1 . . 1 . . . . . . 1 . . . . . Weapon 2 | 1 1 . . . . . . . . . . . . . . . . . . . . . Parts Attached 133 | 7 10 5 23 11 23 4 7 . 7 1 6 3 . 2 2 4 1 4 . . 11 2 Power 7 | 1 1 1 1 . . . . . . . 1 . . . . 1 . . . . 1 . Engine 4 | 1 . 1 1 . . . . . . . . . . . . . . . . . 1 . Core 2 | . 1 . . . . . . . . . 1 . . . . . . . . . . . Reactor 1 | . . . . . . . . . . . . . . . . 1 . . . . . . Propulsion 18 | 2 . . 3 1 4 . 2 . 1 . 3 2 . . . . . . . . . . Treads 5 | 2 . . 3 . . . . . . . . . . . . . . . . . . . Leg 1 | . . . . . 1 . . . . . . . . . . . . . . . . . Wheel . | . . . . . . . . . . . . . . . . . . . . . . . Hover 12 | . . . . 1 3 . 2 . 1 . 3 2 . . . . . . . . . . Flight . | . . . . . . . . . . . . . . . . . . . . . . . Utility 76 | 2 6 2 15 3 15 4 5 . 6 1 1 1 . . 1 . 1 2 . . 9 2 Device 38 | 2 . . 3 2 8 3 4 . 5 . 1 . . . 1 . 1 1 . . 5 2 Storage 5 | . 2 . . . . 1 . . 1 . . . . . . . . 1 . . . . Processor 10 | . . . 2 . 3 . . . . 1 . 1 . . . . . . . . 3 . Hackware 2 | . . . 1 . 1 . . . . . . . . . . . . . . . . . Protection 21 | . 4 2 9 1 3 . 1 . . . . . . . . . . . . . 1 . Artifact . | . . . . . . . . . . . . . . . . . . . . . . . Weapon 32 | 2 3 2 4 7 4 . . . . . 1 . . 2 1 3 . 2 . . 1 . Energy Gun 4 | 2 . . 2 . . . . . . . . . . . . . . . . . . . Energy Cannon . | . . . . . . . . . . . . . . . . . . . . . . . Ballistic Gun 14 | . 3 1 2 3 3 . . . . . . . . 1 . 1 . . . . . . Ballistic Cannon . | . . . . . . . . . . . . . . . . . . . . . . . Launcher 5 | . . 1 . 4 . . . . . . . . . . . . . . . . . . Special Weapon . | . . . . . . . . . . . . . . . . . . . . . . . Impact Weapon 1 | . . . . . . . . . . . . . . . . . . . . . 1 . Slashing Weapon 2 | . . . . . 1 . . . . . . . . . . 1 . . . . . . Piercing Weapon 5 | . . . . . . . . . . . 1 . . 1 . 1 . 2 . . . . Special Melee Weapon 1 | . . . . . . . . . . . . . . . 1 . . . . . . . Unidentified Prototypes 15 | . . . 2 . 7 3 1 . . . . . . . 1 . . . . . 1 . Parts Lost 5 | . . . 1 . 2 . . . . . . . . . . . . . . . 1 1 Power . | . . . . . . . . . . . . . . . . . . . . . . . Propulsion . | . . . . . . . . . . . . . . . . . . . . . . . Utility 5 | . . . 1 . 2 . . . . . . . . . . . . . . . 1 1 Weapon . | . . . . . . . . . . . . . . . . . . . . . . . Highest Loss Streak 2 | . . . 1 . 2 . . . . . . . . . . . . . . . 1 1 Average Slot Usage (%) 93 | . 97 99 98 100 95 86 87 87 87 87 91 93 94 93 93 89 84 88 94 94 94 94 Engine 4 | . 3 5 7 6 6 6 6 6 6 5 1 . . . . . . . . . 1 5 Core 1 | . 9 4 . . . . . . . . 3 5 5 5 5 2 . . . . . . Treads 7 | . 25 20 15 13 10 . . . . . . . . . . . . . . . . . Hover 8 | . . . . 3 7 13 12 12 12 11 14 16 17 17 16 16 15 15 15 15 15 15 Device 14 | . 14 10 12 13 11 13 18 18 18 17 17 17 17 17 16 16 15 15 15 15 14 15 Storage 3 | . 1 . . . . 4 6 6 6 5 5 5 5 5 5 5 5 7 10 10 10 10 Processor 11 | . . . 2 13 15 13 12 12 12 14 17 17 17 17 16 16 15 15 15 15 16 20 Hackware 3 | . . . 4 . . 6 6 6 6 5 5 5 5 5 5 5 5 5 5 5 4 . Protection 14 | . 16 29 30 27 21 8 6 6 6 5 5 5 5 5 5 5 5 5 5 5 4 4 Energy Gun 3 | . 12 10 7 6 5 . . . . . . . . . . . . . . . . . Ballistic Gun 12 | . 13 20 15 11 9 13 12 12 12 11 11 11 11 10 11 10 10 10 10 10 10 10 Slashing Weapon 1 | . . . . . . 6 6 6 6 5 . . . . . 1 . . . . . . Piercing Weapon 1 | . . . . . . . . . . . 4 5 5 5 5 4 5 7 10 10 8 5 Naked Turns . | . . . . . . . . . . . . . . . . . . . . . . . Heaviest Build 68 | 11 35 37 50 51 64 54 53 53 55 53 53 52 52 53 54 63 63 68 67 67 67 68 Greatest Support 71 | 40 45 45 48 45 55 55 55 55 55 55 71 63 63 63 63 63 63 68 68 68 68 68 Greatest Overweight (x) 1 | 1 . . 1 1 1 . 1 . . . 1 . . . . . . . . . . . Average Overweight (x) . | . . . . 1 . . . . . . . . . . . . . . . . . . Largest Inventory Capacity 5 | 2 2 2 3 3 3 3 4 4 4 4 5 5 5 5 5 5 5 5 5 5 5 5 Average Capacity 3 | 1 2 2 2 3 3 3 3 4 4 4 4 5 5 5 5 5 5 5 5 5 5 5 Most Carried 5 | 2 2 2 3 3 3 3 4 4 4 4 5 5 5 5 5 5 5 5 5 5 5 5 Average Carried 2 | 1 1 1 2 2 2 2 3 3 3 3 4 4 4 4 4 3 5 4 5 5 4 5 Final Capacity 5 | 2 2 2 3 3 3 3 4 4 4 4 5 5 5 5 5 5 5 5 5 5 5 5 Final Carried 5 | 2 2 2 3 3 3 3 4 4 4 4 5 5 5 5 4 5 5 5 5 5 5 5 Class Distribution -------------------- 43% | Scavenger-Mutant 39% | Mutant 11% | Tank 6% | Hacker-Tank Dominant Class ---------------- Mutant | -10/Materials Tank | -10/Mines Hacker-Tank | -9/Materials Tank | -9/Mines Mutant | -9/Exiles Scavenger-Mutant | -8/Mines Scavenger-Mutant | -8/Materials Scavenger-Mutant | -8/Garrison Scavenger-Mutant | -8/Materials Scavenger-Mutant | -8/Garrison Scavenger-Mutant | -7/Factory Scavenger-Mutant | -7/Waste Scavenger-Mutant | -7/Factory Scavenger-Mutant | -7/Lower Caves Scavenger-Mutant | -7/Lower Caves Scavenger-Mutant | -7/Data Miner Scavenger-Mutant | -6/Proximity Caves Scavenger-Mutant | -6/Factory Scavenger-Mutant | -6/Lower Caves Scavenger-Mutant | -6/Lower Caves Scavenger-Mutant | -6/Zion Scavenger-Mutant | -6/Deep Caves Resources | -11 -10 -10 -9 -9 -9 -8 -8 -8 -8 -8 -7 -7 -7 -7 -7 -7 -6 -6 -6 -6 -6 -6 ----------- Run | Scr Mat Min Mat Min Exi Min Mat Gar Mat Gar Fac Was Fac Low Low Dat Pro Fac Low Low Zio Dee Matter Collected 8524 | 270 317 68 812 360 687 412 1210 516 874 406 600 150 96 200 60 202 140 98 163 57 722 104 Remotely 53 | 10 43 . . . . . . . . . . . . . . . . . . . . . Salvage Created 16236 | 282 951 92 2423 546 421 514 2292 1100 1628 758 1411 1456 211 210 70 450 140 98 134 . 1007 42 Parts 1040 | 15 72 1 131 40 85 48 107 53 116 54 97 37 16 36 8 24 15 9 5 . 71 . Haulers Intercepted 14 | . 2 . 5 . . . 3 . 3 . 1 . . . . . . . . . . . Recyclers Shooed 2 | . . 1 1 . . . . . . . . . . . . . . . . . . . Parts Field Recycled . | . . . . . . . . . . . . . . . . . . . . . . . Retrieved Matter . | . . . . . . . . . . . . . . . . . . . . . . . Parts Self-Destructed 57 | . . . . . . . . . . . . . . 14 23 . 14 . 6 . . . Prevented 3 | . . . . . . . . . . . . . . . 1 . . . . 2 . . Kills | -11 -10 -10 -9 -9 -9 -8 -8 -8 -8 -8 -7 -7 -7 -7 -7 -7 -6 -6 -6 -6 -6 -6 ------- Run | Scr Mat Min Mat Min Exi Min Mat Gar Mat Gar Fac Was Fac Low Low Dat Pro Fac Low Low Zio Dee Combat Hostiles Destroyed 267 | 10 20 . 40 31 7 17 29 15 24 18 22 5 2 6 3 4 2 3 3 . 4 2 Melee 14 | . . . . . . 1 1 . 1 4 2 . . . . . . . 1 . 3 1 Guns 226 | 10 20 . 37 13 4 14 28 15 23 14 19 5 2 6 3 4 2 3 2 . 1 1 AOE 27 | . . . 3 18 3 2 . . . . 1 . . . . . . . . . . . Classes Destroyed 24 | 4 5 . 4 1 2 . 2 . . . 2 1 . 1 . . 1 . . . 1 . Worker 20 | 4 2 . 3 1 . 2 1 . 5 . 1 . 1 . . . . . . . . . Builder 6 | . . . . . . . 3 . 1 . 1 . 1 . . . . . . . . . Tunneler 4 | 1 . . 1 . . . 1 . 1 . . . . . . . . . . . . . Hauler 14 | . 2 . 5 . . . 3 . 3 . 1 . . . . . . . . . . . Recycler 10 | 1 2 1 2 . . . 2 . 2 . . . . . . . . . . . . . Mechanic 1 | . . . . . . . . . . . 1 . . . . . . . . . . . Operator 8 | . 1 . 2 . . . 1 . 2 . 2 . . . . . . . . . . . Turret 1 | . . . . . 1 . . . . . . . . . . . . . . . . . Watcher 17 | . 3 . 5 . . . 2 3 2 . 1 . 1 . . . . . . . . . Swarmer 44 | . 6 . . 11 . 10 3 . . 5 4 . 2 . . . . . 3 . . . Grunt 117 | . 14 . 31 8 . 5 14 13 11 11 6 . . . 2 . . 2 . . . . Brawler 10 | . . . 1 . . 1 3 . 3 . 2 . . . . . . . . . . . Duelist 5 | . . . 1 1 . . 1 . 1 . 1 . . . . . . . . . . . Protector 1 | . . . 1 . . . . . . . . . . . . . . . . . . . Sentry 32 | . . . 6 . . . 6 2 7 2 7 . . 1 1 . . . . . . . Demolisher 2 | . . . . 2 . . . . . . . . . . . . . . . . . . Hunter 7 | . . . . . . . 2 . 2 . 1 . . 1 . . 1 . . . . . Programmer 3 | . . . . . . . . . . . 1 . . 1 . . . 1 . . . . Behemoth 1 | . . . . . . . . . . . . . . . . . 1 . . . . . Compactor 5 | . . . . . . . . . . . . 5 . . . . . . . . . . Enhanced Grunt 4 | . . . . . . . . . . . . . . . . 4 . . . . . . Zionite 32 | . . . . . 8 . . . . . . . . . . . . . . . 24 . Tinkerer 1 | . . . . . . . . . . . . . . . . . . . . . 1 . Master Thief 3 | . . . . . . . . . . . . . . 3 . . . . . . . . Assembled 28 | 10 . . . 9 7 . . . . . . . . . . . . . . . . 2 Surgeon 1 | . . . . . . . . . . . . . 1 . . . . . . . . . Thug 1 | . . . . . . . . . . . . . . . . . . . . . 1 . Martyr 1 | . . . . . . . . . . . . . . . . . . . . . 1 . Marauder 2 | . . . . . . . . . . . . . . . . . . . . . 2 . Best Kill Streak 9 | 3 5 1 9 9 4 6 8 5 6 8 5 4 2 3 2 4 1 2 2 . 8 2 Combat Bots Only 9 | 2 3 . 7 9 4 5 6 5 4 8 4 4 2 3 2 4 1 2 2 . 1 2 Max Kills in Single Turn 4 | 1 2 1 3 4 1 2 2 2 2 1 2 2 1 1 1 2 1 1 2 . 2 1 Gunslinging 1 | . 1 . 1 . . . . 1 1 . . 1 . . . 1 . . . . . . Exploded 4 | . . . 1 4 1 2 . . . . 1 . . . . . . . . . . . Melee 1 | . . . . . . 1 1 . 1 1 1 . . . . . . . 1 . 1 1 Uniques/NPCs Destroyed 3 | . . . . . 2 1 . . . . . . . . . . . . . . . . 8R-AWN (-9/Exiles) EX-HEX (-9/Exiles) EX-DEC (-9/Exiles) EX-BIN (-9/Exiles) NK-0LA (-8/Mines) Combat | -11 -10 -10 -9 -9 -9 -8 -8 -8 -8 -8 -7 -7 -7 -7 -7 -7 -6 -6 -6 -6 -6 -6 -------- Run | Scr Mat Min Mat Min Exi Min Mat Gar Mat Gar Fac Was Fac Low Low Dat Pro Fac Low Low Zio Dee Damage Taken 10353 | 152 619 13 1602 1036 736 125 579 364 418 324 719 . 84 33 39 553 448 26 357 . 1273 853 Core 6054 | 126 458 5 875 611 453 63 336 182 215 168 336 . 44 12 14 325 254 10 169 . 733 665 Absorbed by Shields 2802 | . . . . 224 271 48 224 143 163 123 279 . 31 14 17 192 158 10 138 . 456 311 Redirected to Core 5176 | 91 348 5 785 536 368 57 255 171 195 155 280 . 44 12 14 292 215 10 158 . 640 545 Core Remaining (%) 92 | 93 . 100 . . . 85 . . . 100 . . . . . . 84 . . . . . Volleys Fired 839 | 35 70 6 97 38 114 32 95 43 77 33 45 10 8 16 5 13 15 8 10 1 51 17 Largest 3 | 2 2 3 3 3 3 2 2 2 2 2 2 2 2 2 2 2 2 2 2 2 2 2 Hottest 91 | 90 63 86 91 91 91 60 60 60 60 60 60 60 60 60 60 60 60 60 60 60 60 60 Shots Fired 1700 | 69 136 12 275 85 187 62 190 86 140 66 90 20 16 30 10 22 30 16 20 2 102 34 Gun 1686 | 69 136 12 275 77 181 62 190 86 140 66 90 20 16 30 10 22 30 16 20 2 102 34 Cannon . | . . . . . . . . . . . . . . . . . . . . . . . Launcher 14 | . . . . 8 6 . . . . . . . . . . . . . . . . . Special . | . . . . . . . . . . . . . . . . . . . . . . . Kinetic 1350 | . 66 6 194 54 94 62 190 86 140 66 90 20 16 30 10 22 30 16 20 2 102 34 Thermal 34 | 34 . . . . . . . . . . . . . . . . . . . . . . Explosive 14 | . . . . 8 6 . . . . . . . . . . . . . . . . . Electromagnetic 302 | 35 70 6 81 23 87 . . . . . . . . . . . . . . . . . Robot Hit Streak 27 | 6 13 5 27 12 23 4 11 7 10 7 5 5 3 3 2 7 9 3 3 . 9 2 Robot Miss Streak 8 | 4 7 2 3 2 6 4 4 3 5 7 4 2 5 7 4 4 2 2 4 4 8 8 Penetration Max 2 | . . . . . 1 2 2 1 2 1 2 1 1 . 1 1 . 1 1 . 1 . Secondary Targets 39 | . 2 . 9 3 1 2 2 3 4 2 2 1 . . . 2 . . 1 . 5 . Max Gunslinging Chain 1 | . 1 . 1 1 1 1 1 1 1 1 1 1 . . . 1 . . 1 . 1 . Shots Hit Robots 1101 | 37 78 5 202 64 155 33 114 46 92 47 58 12 7 10 6 14 21 8 12 . 70 10 Core Hits 630 | 26 44 3 95 50 74 25 65 30 54 25 50 7 8 6 3 8 6 5 5 . 35 6 Critical Hits 335 | . 2 . 1 1 17 23 64 35 53 23 29 7 2 6 5 9 8 6 5 . 34 5 Critical Kills 135 | . 2 . . 1 4 8 20 14 25 9 15 5 2 5 3 4 1 3 1 . 12 1 Critical Parts Destroyed 167 | . . . 1 . 8 13 38 19 25 12 11 1 . 1 2 3 6 3 3 . 19 2 Melee Attacks 150 | . . . . . 3 7 11 5 31 28 18 . 3 . 3 2 . 1 4 . 32 2 Impact 3 | . . . . . . . . . . . . . . . . . . . . . 3 . Slashing 85 | . . . . . 3 7 11 5 31 28 . . . . . . . . . . . . Piercing 59 | . . . . . . . . . . . 18 . 3 . 1 1 . 1 4 . 29 2 Sneak Attacks 18 | . . . . . . . 1 1 5 . 3 . 3 . 2 2 . . . . 1 . Combat Hostiles . | . . . . . . . . . . . . . . . . . . . . . . . Follow-up Attacks 2 | . . . . . . . . . . . . . . . . . . . 1 . 1 . Damage Inflicted 24640 | 414 1204 73 3393 2048 2299 1057 2689 990 2704 1547 1649 283 404 215 116 419 425 196 437 . 1812 266 Guns 17365 | 414 1127 73 2883 842 1516 765 2388 859 1751 590 1078 283 155 215 116 291 425 196 196 . 1007 195 Cannons . | . . . . . . . . . . . . . . . . . . . . . . . Explosions 2600 | . 77 . 510 1206 655 152 . . . . . . . . . . . . . . . . Melee 4675 | . . . . . 128 140 301 131 953 957 571 . 249 . . 128 . . 241 . 805 71 Ramming . | . . . . . . . . . . . . . . . . . . . . . . . Kinetic 14182 | . 467 32 1507 531 1135 765 2388 859 1751 590 1078 283 155 215 116 291 425 196 196 . 1007 195 Thermal 959 | 151 34 . 510 36 76 152 . . . . . . . . . . . . . . . . Explosive 1713 | . . . . 1170 543 . . . . . . . . . . . . . . . . . Electromagnetic 3111 | 263 703 41 1376 311 417 . . . . . . . . . . . . . . . . . Impact 28 | . . . . . . . . . . . . . . . . . . . . . 28 . Slashing 2610 | . . . . . 128 140 301 131 953 957 . . . . . . . . . . . . Piercing 2037 | . . . . . . . . . . . 571 . 249 . . 128 . . 241 . 777 71 Highest Corruption 1 | . 1 1 . . . . . . . . . . . . . . . . . . . . Average Corruption 1 | . 1 1 . . . . . . . . . . . . . . . . . . . . Corruption Purged . | . . . . . . . . . . . . . . . . . . . . . . . Effects 7 | . 3 4 . . . . . . . . . . . . . . . . . . . . Message Errors 4 | . 1 3 . . . . . . . . . . . . . . . . . . . . Data Loss (minor) 2 | . 1 1 . . . . . . . . . . . . . . . . . . . . Targeting Errors 1 | . 1 . . . . . . . . . . . . . . . . . . . . . Overload Shots . | . . . . . . . . . . . . . . . . . . . . . . . Overflow Damage 745 | . . . . 52 15 . 5 56 249 135 62 . 42 . . 8 . . 121 . . . Projectiles . | . . . . . . . . . . . . . . . . . . . . . . . Explosions 67 | . . . . 52 15 . . . . . . . . . . . . . . . . . Melee 678 | . . . . . . . 5 56 249 135 62 . 42 . . 8 . . 121 . . . Knockbacks . | . . . . . . . . . . . . . . . . . . . . . . . Impact . | . . . . . . . . . . . . . . . . . . . . . . . Kinetic . | . . . . . . . . . . . . . . . . . . . . . . . Secondary . | . . . . . . . . . . . . . . . . . . . . . . . Self-Inflicted Damage 533 | . 35 . 299 94 86 19 . . . . . . . . . . . . . . . . Shots 14 | . 1 . 7 3 2 1 . . . . . . . . . . . . . . . . Rammed . | . . . . . . . . . . . . . . . . . . . . . . . Targets Rammed . | . . . . . . . . . . . . . . . . . . . . . . . Kicked . | . . . . . . . . . . . . . . . . . . . . . . . Crushed . | . . . . . . . . . . . . . . . . . . . . . . . Highest Temperature 180 | 180 36 . 104 40 35 6 . 15 4 1 6 4 . . 3 . 6 3 1 . 30 42 Average Temperature 21 | 48 9 . 18 11 16 3 . 7 2 1 3 4 . . 2 . 3 2 1 . 10 23 Received Heat Transfer 2197 | . 252 9 564 69 . 36 198 192 174 138 158 . . 6 16 64 36 12 6 . 6 261 Siege Activations . | . . . . . . . . . . . . . . . . . . . . . . . Robots Corrupted . | . . . . . . . . . . . . . . . . . . . . . . . Combat Hostiles . | . . . . . . . . . . . . . . . . . . . . . . . Parts Fried 6 | . 2 . 2 . 2 . . . . . . . . . . . . . . . . . Impact Corruptions . | . . . . . . . . . . . . . . . . . . . . . . . Robots Melted . | . . . . . . . . . . . . . . . . . . . . . . . Combat Hostiles . | . . . . . . . . . . . . . . . . . . . . . . . Parts Melted . | . . . . . . . . . . . . . . . . . . . . . . . Heat Transferred 1594 | 444 50 . 738 50 62 250 . . . . . . . . . . . . . . . . Parts Sabotaged . | . . . . . . . . . . . . . . . . . . . . . . . Parts Stolen 1 | . . . . . . . . . . . . . . 1 . . . . . . . . Parts Stripped . | . . . . . . . . . . . . . . . . . . . . . . . Power Chain Reactions 15 | . 3 . 8 1 3 . . . . . . . . . . . . . . . . . Missiles Intercepted . | . . . . . . . . . . . . . . . . . . . . . . . Alert | -11 -10 -10 -9 -9 -9 -8 -8 -8 -8 -8 -7 -7 -7 -7 -7 -7 -6 -6 -6 -6 -6 -6 ------- Run | Scr Mat Min Mat Min Exi Min Mat Gar Mat Gar Fac Was Fac Low Low Dat Pro Fac Low Low Zio Dee Peak Influence 889 | 30 356 114 824 463 . 416 889 877 516 849 848 137 417 . . . . 183 . . . . Initial 445 | . . 109 33 321 . . 121 367 427 314 445 120 95 . . . . 37 . . . . Average 274 | 1 210 81 525 383 . 252 528 652 322 552 555 130 260 . . . . 109 . . . . Maximum Alert Level 3 | . 1 . 3 2 . 2 3 3 2 3 3 . 2 . . . . . . . . . Low Security (%) 46 | 100 31 100 16 . . 45 8 . 13 . . 100 27 . . . . 100 . . . . Level 1 22 | . 68 . 16 45 . 37 22 4 61 29 19 . 62 . . . . . . . . . Level 2 21 | . . . 31 54 . 17 33 62 25 44 59 . 10 . . . . . . . . . Level 3 10 | . . . 36 . . . 35 33 . 25 20 . . . . . . . . . . . Level 4 . | . . . . . . . . . . . . . . . . . . . . . . . Level 5 . | . . . . . . . . . . . . . . . . . . . . . . . High Security . | . . . . . . . . . . . . . . . . . . . . . . . Max Security . | . . . . . . . . . . . . . . . . . . . . . . . Squads Dispatched 30 | . 5 . 9 1 . . 4 . 6 . 3 . 1 . . . . 1 . . . . Investigation 23 | . 4 . 7 1 . . 4 . 4 . 1 . 1 . . . . 1 . . . . Extermination 1 | . . . . . . . . . . . 1 . . . . . . . . . . . Reinforcement 4 | . 1 . 1 . . . . . 2 . . . . . . . . . . . . . Assault 2 | . . . 1 . . . . . . . 1 . . . . . . . . . . . Garrison . | . . . . . . . . . . . . . . . . . . . . . . . Intercept . | . . . . . . . . . . . . . . . . . . . . . . . Construction Impeded . | . . . . . . . . . . . . . . . . . . . . . . . Haulers Reinforced . | . . . . . . . . . . . . . . . . . . . . . . . Stealth | -11 -10 -10 -9 -9 -9 -8 -8 -8 -8 -8 -7 -7 -7 -7 -7 -7 -6 -6 -6 -6 -6 -6 --------- Run | Scr Mat Min Mat Min Exi Min Mat Gar Mat Gar Fac Was Fac Low Low Dat Pro Fac Low Low Zio Dee Distress Signals 9 | . 4 . 3 . . . . . 1 . 1 . . . . . . . . . . . Communications Jammed 130 | . . . . . . . 14 17 88 . 11 . . . . . . . . . . . Distress Signals 130 | . . . . . . . 14 17 88 . 11 . . . . . . . . . . . Times Spotted 427 | 9 30 2 59 33 27 13 45 16 45 22 37 5 5 7 7 4 1 4 17 . 31 8 Peak Tracking Total 11 | 1 5 2 7 11 8 5 6 3 6 3 4 2 3 2 3 4 1 3 11 . 6 4 Tactical Retreats 46 | 1 3 . 3 1 10 2 3 . 7 4 1 . . . . . . 1 3 . 3 4 Traps | -11 -10 -10 -9 -9 -9 -8 -8 -8 -8 -8 -7 -7 -7 -7 -7 -7 -6 -6 -6 -6 -6 -6 ------- Run | Scr Mat Min Mat Min Exi Min Mat Gar Mat Gar Fac Was Fac Low Low Dat Pro Fac Low Low Zio Dee Traps Triggered 12 | . 2 . . . . . 1 4 . 2 3 . . . . . . . . . . . Indirectly . | . . . . . . . . . . . . . . . . . . . . . . . Trap Hack Attempts . | . . . . . . . . . . . . . . . . . . . . . . . Triggered . | . . . . . . . . . . . . . . . . . . . . . . . Disarmed . | . . . . . . . . . . . . . . . . . . . . . . . Reprogrammed . | . . . . . . . . . . . . . . . . . . . . . . . Reused . | . . . . . . . . . . . . . . . . . . . . . . . Traps Extracted . | . . . . . . . . . . . . . . . . . . . . . . . Installed . | . . . . . . . . . . . . . . . . . . . . . . . Triggered 7 | . . . . . . . . . . . . . . . 3 . . . . 4 . . Machines | -11 -10 -10 -9 -9 -9 -8 -8 -8 -8 -8 -7 -7 -7 -7 -7 -7 -6 -6 -6 -6 -6 -6 ---------- Run | Scr Mat Min Mat Min Exi Min Mat Gar Mat Gar Fac Was Fac Low Low Dat Pro Fac Low Low Zio Dee Machines Disabled 55 | . 2 2 7 3 12 7 5 1 9 2 2 . . . . . . . . . 2 1 Max in Single Turn 3 | . 1 2 3 2 3 2 1 1 1 1 1 . . . . . . . . . 1 1 Garrison Access 2 | . . . . . . . . . . . 2 . . . . . . . . . . . Garrison Relay 3 | . . . . . . . . 1 . 2 . . . . . . . . . . . . Machines Sabotaged . | . . . . . . . . . . . . . . . . . . . . . . . Garrisons Compromised . | . . . . . . . . . . . . . . . . . . . . . . . Overloaded Fab Kills . | . . . . . . . . . . . . . . . . . . . . . . . Fab Network Shutdowns . | . . . . . . . . . . . . . . . . . . . . . . . Hacking | -11 -10 -10 -9 -9 -9 -8 -8 -8 -8 -8 -7 -7 -7 -7 -7 -7 -6 -6 -6 -6 -6 -6 --------- Run | Scr Mat Min Mat Min Exi Min Mat Gar Mat Gar Fac Was Fac Low Low Dat Pro Fac Low Low Zio Dee Machines Accessed 85 | . 9 . 13 1 3 . 13 . 15 . 15 . 5 . . 4 . 6 . 1 . . Terminals 50 | . 7 . 9 1 . . 10 . 8 . 8 . 3 . . . . 4 . . . . Fabricators 3 | . . . . . . . . . . . 2 . . . . . . 1 . . . . Repair Stations 5 | . . . 1 . . . 1 . 2 . . . 1 . . . . . . . . . Recycling Units 9 | . 2 . 2 . . . 1 . 2 . 2 . . . . . . . . . . . Scanalyzers 5 | . . . 1 . . . . . 2 . . . 1 . . . . 1 . . . . Garrison Access 5 | . . . . . . . 1 . 1 . 3 . . . . . . . . . . . Total Hacks 501 | . 47 . 75 4 4 . 83 . 123 . 83 . 30 . . 27 . 24 . 1 . . Successful 329 | . 33 . 54 1 4 . 52 . 78 . 48 . 19 . . 27 . 12 . 1 . . Failed 169 | . 14 . 20 2 . . 31 . 45 . 34 . 11 . . . . 12 . . . . Catastrophic 26 | . . . . . . . 5 . 6 . 10 . 2 . . . . 3 . . . . Database Lockouts 3 | . . . 1 1 . . . . . . 1 . . . . . . . . . . . Manual 287 | . 35 . 51 5 1 . 55 . 65 . 49 . 17 . . . . 9 . . . . Terminals 345 | . 39 . 57 4 . . 74 . 69 . 61 . 26 . . . . 15 . . . . Fabricators 12 | . . . . . . . . . . . 9 . . . . . . 3 . . . . Repair Stations 19 | . . . 6 . . . 2 . 9 . . . 2 . . . . . . . . . Recycling Units 33 | . 8 . 7 . . . 4 . 9 . 5 . . . . . . . . . . . Scanalyzers 43 | . . . 5 . . . . . 30 . . . 2 . . . . 6 . . . . Garrison Access 17 | . . . . . . . 3 . 6 . 8 . . . . . . . . . . . Terminal Hacks 146 | . 13 . 20 1 4 . 23 . 21 . 21 . 10 . . 27 . 5 . 1 . . Record 14 | . . . . . 3 . . . . . . . . . . 11 . . . . . . Part Schematic 15 | . 1 . . 1 . . . . 4 . 1 . 3 . . 5 . . . . . . Robot Schematic 9 | . 1 . . . . . . . . . . . . . . 8 . . . . . . Robot Analysis 18 | . 4 . 5 . . . . . 6 . 2 . 1 . . . . . . . . . Prototype ID Bank 17 | . 3 . . . . . 6 . 1 . 3 . . . . 3 . 1 . . . . Open Door 1 | . . . . . . . . . . . . . . . . . . . . 1 . . Level Access Points 3 | . . . 1 . . . 1 . . . 1 . . . . . . . . . . . Branch Access Points 4 | . 1 . 1 . . . . . . . . . 1 . . . . 1 . . . . Machine Index 1 | . . . 1 . . . . . . . . . . . . . . . . . . . Terminal Index 5 | . . . 1 . . . 1 . 1 . 1 . 1 . . . . . . . . . Fabricator Index 1 | . . . . . . . . . . . 1 . . . . . . . . . . . Repair Station Index 2 | . . . . . . . 1 . . . . . 1 . . . . . . . . . Recycling Unit Index 1 | . . . . . . . 1 . . . . . . . . . . . . . . . Scanalyzer Index 2 | . . . . . . . 1 . . . 1 . . . . . . . . . . . Garrison Index 2 | . . . . . . . . . 1 . . . . . . . . 1 . . . . Alert Level 3 | . . . 2 . . . 1 . . . . . . . . . . . . . . . Unreport Threat 12 | . . . 1 . . . 3 . 4 . 4 . . . . . . . . . . . Locate Traps 9 | . 1 . 2 . . . 1 . . . 3 . 1 . . . . 1 . . . . Recall Investigation 1 | . . . . . . . 1 . . . . . . . . . . . . . . . Recall Reinforcements 1 | . . . . . . . . . 1 . . . . . . . . . . . . . Hauler Manifests 5 | . 1 . 1 . . . 2 . 1 . . . . . . . . . . . . . Registered Components 2 | . . . 1 . . . . . . . . . 1 . . . . . . . . . Registered Prototypes 2 | . 1 . . . . . . . . . . . . . . . . 1 . . . . Zone Layout 15 | . . . 4 . . . 4 . 2 . 4 . 1 . . . . . . . . . EX-Prototype ID Bank 1 | . . . . . 1 . . . . . . . . . . . . . . . . . Fabricator Hacks 6 | . . . . . . . . . . . 4 . . . . . . 2 . . . . Load Schematic 3 | . . . . . . . . . . . 2 . . . . . . 1 . . . . Build 3 | . . . . . . . . . . . 2 . . . . . . 1 . . . . Repair Station Hacks 17 | . . . 6 . . . 2 . 7 . . . 2 . . . . . . . . . Scan Component 9 | . . . 3 . . . 1 . 4 . . . 1 . . . . . . . . . Repair 8 | . . . 3 . . . 1 . 3 . . . 1 . . . . . . . . . Recycling Unit Hacks 13 | . 3 . 2 . . . 1 . 4 . 3 . . . . . . . . . . . Report Inventory 8 | . 2 . 1 . . . 1 . 2 . 2 . . . . . . . . . . . Retrieve Matter 1 | . . . . . . . . . 1 . . . . . . . . . . . . . Retrieve Components 4 | . 1 . 1 . . . . . 1 . 1 . . . . . . . . . . . Scanalyzer 31 | . . . 4 . . . . . 23 . . . 2 . . . . 2 . . . . Insert Component 11 | . . . 2 . . . . . 7 . . . 1 . . . . 1 . . . . Analyze 20 | . . . 2 . . . . . 16 . . . 1 . . . . 1 . . . . Garrison Access Hacks 6 | . . . . . . . 1 . 2 . 3 . . . . . . . . . . . Unlock Access 3 | . . . . . . . 1 . 1 . 1 . . . . . . . . . . . Seal Access 2 | . . . . . . . . . . . 2 . . . . . . . . . . . Coupler Status 1 | . . . . . . . . . 1 . . . . . . . . . . . . . Unauthorized Hacks 110 | . 17 . 22 . . . 25 . 21 . 17 . 5 . . . . 3 . . . . Terminals 82 | . 12 . 17 . . . 21 . 15 . 11 . 5 . . . . 1 . . . . Track 36 | . 5 . 7 . . . 10 . 6 . 6 . 2 . . . . . . . . . Assimilate 2 | . . . . . . . . . 2 . . . . . . . . . . . . . Botnet 36 | . 6 . 7 . . . 9 . 6 . 5 . 2 . . . . 1 . . . . Operators 8 | . 1 . 3 . . . 2 . 1 . . . 1 . . . . . . . . . Fabricators 3 | . . . . . . . . . . . 2 . . . . . . 1 . . . . Report 3 | . . . . . . . . . . . 2 . . . . . . 1 . . . . Repair Stations . | . . . . . . . . . . . . . . . . . . . . . . . Recycling Units 16 | . 5 . 4 . . . 3 . 4 . . . . . . . . . . . . . Reject 4 | . 2 . 1 . . . 1 . . . . . . . . . . . . . . . Mask 5 | . 1 . 1 . . . 1 . 2 . . . . . . . . . . . . . Tunnel 7 | . 2 . 2 . . . 1 . 2 . . . . . . . . . . . . . Scanalyzers 2 | . . . 1 . . . . . . . . . . . . . . 1 . . . . Extract 2 | . . . 1 . . . . . . . . . . . . . . 1 . . . . Garrison Access 7 | . . . . . . . 1 . 2 . 4 . . . . . . . . . . . Broadcast 1 | . . . . . . . . . . . 1 . . . . . . . . . . . Decoy 1 | . . . . . . . . . . . 1 . . . . . . . . . . . Reprogram 3 | . . . . . . . 1 . 1 . 1 . . . . . . . . . . . Watchers 2 | . . . . . . . . . 1 . 1 . . . . . . . . . . . Data Cores Recovered 3 | . . . . . . . 1 . . . 2 . . . . . . . . . . . Used 3 | . . . . . . . 1 . . . 2 . . . . . . . . . . . Hacking Detections 67 | . 9 . 13 1 . . 11 . 12 . 10 . 5 . . . . 6 . . . . Full Trace Events 14 | . 2 . 4 1 . . 3 . 2 . 1 . 1 . . . . . . . . . Feedback Events . | . . . . . . . . . . . . . . . . . . . . . . . Feedback Blocked . | . . . . . . . . . . . . . . . . . . . . . . . Robot Schematics Acquired 9 | . 1 . . . . . . . . . . . . . . 8 . . . . . . Robots Built . | . . . . . . . . . . . . . . . . . . . . . . . Matter . | . . . . . . . . . . . . . . . . . . . . . . . Time . | . . . . . . . . . . . . . . . . . . . . . . . Total Robot Build Rating . | . . . . . . . . . . . . . . . . . . . . . . . Part Schematics Acquired 30 | . 1 . 6 1 . . . . 10 . 1 . 4 . . 5 . 2 . . . . Parts Built 4 | . . . . . . . . . . . 3 . . . . . . 1 . . . . Matter 892 | . . . . . . . . . . . 574 . . . . . . 318 . . . . Time 233 | . . . . . . . . . . . 149 . . . . . . 84 . . . . Total Part Build Rating 24 | . . . . . . . . . . . 18 . . . . . . 6 . . . . Parts Repaired 8 | . . . 3 . . . 1 . 3 . . . 1 . . . . . . . . . Time 640 | . . . 96 . . . 108 . 358 . . . 78 . . . . . . . . . Parts Recycled . | . . . . . . . . . . . . . . . . . . . . . . . Recycled Matter . | . . . . . . . . . . . . . . . . . . . . . . . Retrieved Matter 148 | . . . . . . . . . 148 . . . . . . . . . . . . . Retrieved Components 26 | . 10 . 10 . . . . . 3 . 3 . . . . . . . . . . . Parts Scanalyzed 10 | . . . 2 . . . . . 6 . . . 1 . . . . 1 . . . . Part Schematics Acquired 10 | . . . 2 . . . . . 6 . . . 1 . . . . 1 . . . . Parts Damaged 2 | . . . . . . . . . 2 . . . . . . . . . . . . . Bothacking | -11 -10 -10 -9 -9 -9 -8 -8 -8 -8 -8 -7 -7 -7 -7 -7 -7 -6 -6 -6 -6 -6 -6 ------------ Run | Scr Mat Min Mat Min Exi Min Mat Gar Mat Gar Fac Was Fac Low Low Dat Pro Fac Low Low Zio Dee Used RIF Installer 2 | . . . . . . . . 1 . 1 . . . . . . . . . . . . Coupler Efficiency 1 | . . . . . . . . . . 1 . . . . . . . . . . . . Robots Hacked 3 | . . . . . . . . . . . . . . . 2 1 . . . . . . Non-combat 1 | . . . . . . . . . . . . . . . 1 . . . . . . . Combat 2 | . . . . . . . . . . . . . . . 1 1 . . . . . . Robot Hacks Applied 3 | . . . . . . . . . . . . . . . 2 1 . . . . . . parse_system 3 | . . . . . . . . . . . . . . . 2 1 . . . . . . Relay Couplers Released 6 | . . . . . . . . 2 . 4 . . . . . . . . . . . . Machine Destruction 6 | . . . . . . . . 2 . 4 . . . . . . . . . . . . Robots Rewired . | . . . . . . . . . . . . . . . . . . . . . . . Allies Hacked . | . . . . . . . . . . . . . . . . . . . . . . . Hacks Repelled . | . . . . . . . . . . . . . . . . . . . . . . . Allies | -11 -10 -10 -9 -9 -9 -8 -8 -8 -8 -8 -7 -7 -7 -7 -7 -7 -6 -6 -6 -6 -6 -6 -------- Run | Scr Mat Min Mat Min Exi Min Mat Gar Mat Gar Fac Was Fac Low Low Dat Pro Fac Low Low Zio Dee Total Allies 22 | . . 2 . . . . . . 2 . . 18 . . . . . . . . . . Largest Group 18 | . . 2 2 . . . . . 2 1 . 18 13 11 7 1 . . . . . . Highest-Rated Group 446 | . . 43 43 . . . . . 19 10 . 446 354 307 179 35 . . . . . . Highest-Rated Ally 35 | . . 31 31 . . . . . 10 10 . 35 35 35 35 35 . . . . . . Total Orders 4 | . . . . . . . . . 2 2 . . . . . . . . . . . . STAY 2 | . . . . . . . . . 1 1 . . . . . . . . . . . . FOLLOW 2 | . . . . . . . . . 1 1 . . . . . . . . . . . . Ally Attacks 153 | . . 3 23 . . . . . . . . 23 11 53 39 1 . . . . . . Total Damage 3376 | . . 61 292 . . . . . . . . 995 170 979 849 30 . . . . . . Kills 27 | . . 2 4 . . . . . . . . 5 3 6 7 . . . . . . . Allies Corrupted 1 | . . . . . . . . . . . . 1 . . . . . . . . . . Allies Melted 1 | . . . . . . . . . . . . . . . 1 . . . . . . . Turrets Deployed 1 | . . . . . . 1 . . . . . . . . . . . . . . . . Intel | -11 -10 -10 -9 -9 -9 -8 -8 -8 -8 -8 -7 -7 -7 -7 -7 -7 -6 -6 -6 -6 -6 -6 ------- Run | Scr Mat Min Mat Min Exi Min Mat Gar Mat Gar Fac Was Fac Low Low Dat Pro Fac Low Low Zio Dee Robot Analysis Total 133 | . 4 . 5 . . . . . 6 . 2 . 1 . . 115 . . . . . . Derelict Logs Recovered 6 | . . 2 . 1 . . . . . . . . . 1 1 . . . 1 . . . Drone Launches 1 | . . . . . 1 . . . . . . . . . . . . . . . . . Drone Recoveries . | . . . . . . . . . . . . . . . . . . . . . . . Exploration | -11 -10 -10 -9 -9 -9 -8 -8 -8 -8 -8 -7 -7 -7 -7 -7 -7 -6 -6 -6 -6 -6 -6 ------------- Run | Scr Mat Min Mat Min Exi Min Mat Gar Mat Gar Fac Was Fac Low Low Dat Pro Fac Low Low Zio Dee Turns Passed 25583 | 6260 1488 770 2699 1446 3071 530 1004 798 1827 651 1442 358 461 335 514 251 199 278 199 230 523 249 Spaces Moved 15365 | 1302 699 447 1168 682 1664 592 787 875 1304 700 1492 433 450 396 319 142 235 347 255 351 462 263 Core 4 | 4 . . . . . . . . . . . . . . . . . . . . . . Treads 5490 | 1298 699 447 1168 682 1196 . . . . . . . . . . . . . . . . . Legs . | . . . . . . . . . . . . . . . . . . . . . . . Wheels . | . . . . . . . . . . . . . . . . . . . . . . . Hover 9871 | . . . . . 468 592 787 875 1304 700 1492 433 450 396 319 142 235 347 255 351 462 263 Flight . | . . . . . . . . . . . . . . . . . . . . . . . Fastest Speed 50 | 50 160 160 160 190 66 66 66 66 66 66 65 62 65 65 65 65 65 65 65 65 65 65 Average Speed 105 | 159 160 160 177 190 163 66 66 66 66 66 68 64 65 65 65 65 65 65 65 65 65 65 Slowest Speed 190 | 160 160 160 190 190 190 66 110 66 66 66 146 65 65 65 65 65 65 65 65 65 65 65 Overloaded Moves . | . . . . . . . . . . . . . . . . . . . . . . . Propulsion Burnouts . | . . . . . . . . . . . . . . . . . . . . . . . Robots Hopped . | . . . . . . . . . . . . . . . . . . . . . . . Cave-ins Triggered . | . . . . . . . . . . . . . . . . . . . . . . . Exploration Rate (%) 65 | 108 83 96 81 98 92 96 64 83 81 76 42 97 11 58 52 79 43 10 41 54 44 26 Regions Visited 22 Branch Regions 12 Pre-discovered Areas 28 | . 2 1 2 . 1 . 1 . 2 . . . . . . 19 . . . . . . Known Exits Taken 14 | . 1 . 1 . . 1 1 . 1 . . . 1 1 1 1 1 1 1 1 1 . Unknown Exits Taken 4 | 1 . 1 . 1 1 . . . . . . . . . . . . . . . . . Scrap Searched 15 | . . 2 . 2 . 2 . . . . . . . 2 . . 1 . 2 3 1 . Spaces Dug 8 | . . . . . . . . . 3 . 2 . . . 1 . . 1 . . 1 . Terrain Destroyed 364 | . 5 17 51 62 42 33 69 14 37 6 12 . 2 3 3 . . 2 5 . 1 . Melee 6 | . . . . . . . . . 1 . 2 . . . 1 . . 1 . . 1 . Projectile 163 | . . . . . . 15 69 14 36 6 10 . 2 3 2 . . 1 5 . . . AOE 195 | . 5 17 51 62 42 18 . . . . . . . . . . . . . . . . Terrain Rammed . | . . . . . . . . . . . . . . . . . . . . . . . Walls Destroyed . | . . . . . . . . . . . . . . . . . . . . . . . Machines Disabled . | . . . . . . . . . . . . . . . . . . . . . . . Actions | -11 -10 -10 -9 -9 -9 -8 -8 -8 -8 -8 -7 -7 -7 -7 -7 -7 -6 -6 -6 -6 -6 -6 --------- Run | Scr Mat Min Mat Min Exi Min Mat Gar Mat Gar Fac Was Fac Low Low Dat Pro Fac Low Low Zio Dee Total 23363 | 5412 937 492 1587 758 1905 687 1140 1036 2157 825 1828 498 604 455 615 285 262 386 271 351 568 304 Wait 6215 | 4056 103 21 211 7 28 17 198 21 687 12 215 42 140 29 281 109 4 12 . . 2 20 Move 15342 | 1301 698 446 1167 681 1663 591 786 873 1303 698 1492 432 449 395 318 141 234 346 254 350 461 263 Hop . | . . . . . . . . . . . . . . . . . . . . . . . Pick Up 86 | 5 7 1 13 3 22 5 3 1 7 7 3 1 2 1 . 2 . 1 . . 2 . Fast Attach 71 | 7 7 3 10 1 15 2 6 . . . 5 2 . 1 2 1 1 2 . . 6 . Attach 23 | . 2 . 3 2 3 1 1 . 6 1 . . . . 1 2 . . . . 1 . Detach 8 | . . . 1 . . . . . 6 . . . . . . 1 . . . . . . Swap 40 | . 1 2 10 8 5 1 . . 1 . 1 1 . 1 . 1 . 2 . . 4 2 Drop 134 | 3 12 4 24 2 38 7 6 1 4 6 7 3 1 3 1 3 1 2 . . 6 . Fire 839 | 35 70 6 97 38 114 32 95 43 77 33 45 10 8 16 5 13 15 8 10 1 51 17 Melee 145 | . . . . . 3 7 11 5 31 28 18 . 3 . 3 2 . 1 2 . 29 2 Ram . | . . . . . . . . . . . . . . . . . . . . . . . Kick . | . . . . . . . . . . . . . . . . . . . . . . . Crush . | . . . . . . . . . . . . . . . . . . . . . . . Escape Stasis 78 | . . . . . . . . 52 . 13 13 . . . . . . . . . . . Rewire . | . . . . . . . . . . . . . . . . . . . . . . . Trap . | . . . . . . . . . . . . . . . . . . . . . . . Miscellaneous 382 | 5 37 9 51 16 14 24 34 40 35 27 29 7 1 9 4 10 7 12 5 . 6 . Route ------- -11/Scrapyard -10/Materials (discovered 4 exits: *Mat x2 / *Min x2) -10/Mines (discovered 2 exits: *Mat x2) -9/Materials (discovered 5 exits: *Mat x3 / *Min x2) -9/Mines (discovered 3 exits: *Mat x2 / *Exi) -9/Exiles (discovered 2 exits: [*Min x2]) -8/Mines (discovered 2 exits: *Mat x2) -8/Materials (discovered 4 exits: *Fac x3 / Gar) -8/Garrison (discovered 3 exits: *Mat x3) -8/Materials (discovered 4 exits: *Fac x3 / Gar) -8/Garrison (discovered 2 exits: *Fac x2) -7/Factory (discovered 7 exits: *Fac x4 / *Sto / *Low / Gar) -7/Waste -7/Factory (discovered 3 exits: Sto / *Low x2) -7/Lower Caves -7/Lower Caves -7/Data Miner -6/Proximity Caves -6/Factory (discovered 5 exits: [*Fac] / *Low x2 / Ext x2) -6/Lower Caves -6/Lower Caves -6/Zion (discovered 2 exits: *Dee / *Pro) -6/Deep Caves History --------- Turn | Location | Event 4 | -11/Scrapyard | Discovered new exit (range 15) 16 | -11/Scrapyard | Upgraded with Propulsion slot (x1) 16 | -11/Scrapyard | Upgraded with Utility slot (x1) 16 | -11/Scrapyard | Upgraded with Weapon slot (x1) 4505 | -11/Scrapyard | Assembled infested the area 6261 | -11/Scrapyard | Entered Materials 6262 | -10/Materials | Build established: Mutant 6277 | -10/Materials | Discovered new exit (range 13) 6405 | -10/Materials | Discovered new exit (range 15) 6731 | -10/Materials | Reached level 2 6749 | -10/Materials | Upgraded with Utility slot (x1) 6775 | -10/Materials | Discovered new exit (range 17) 7104 | -10/Materials | Identified exit to Mines 7266 | -10/Materials | Discovered new exit (range 16) 7501 | -10/Materials | Reached level 3 7511 | -10/Materials | Upgraded with Utility slot (x1) 7511 | -10/Materials | Upgraded with Weapon slot (x1) 7749 | -10/Materials | Entered Mines 7780 | -10/Mines | Discovered new exit (range 5) 7799 | -10/Mines | Build established: Tank 7905 | -10/Mines | Discovered new exit (range 8) 8028 | -10/Mines | Learned location of Zion (-6) 8049 | -10/Mines | Joined a pair of Derelicts in attacking an 0b10 outpost 8374 | -10/Mines | Learned Materials stockpile data 8519 | -10/Mines | Entered Materials 8519 | -9/Materials | Accompanied by 2 allies 8521 | -9/Materials | Reached level 4 8521 | -9/Materials | Upgraded with Utility slot (x1) 8524 | -9/Materials | Led the pair of lost Derelicts to an unsafe place 8589 | -9/Materials | Reached level 5 8967 | -9/Materials | Reached level 6 9013 | -9/Materials | Upgraded with Utility slot (x1) 9235 | -9/Materials | Discovered new exit (range 17) 9461 | -9/Materials | Build established: Hacker-Tank 9521 | -9/Materials | Reached level 7 9539 | -9/Materials | Upgraded with Utility slot (x1) 9551 | -9/Materials | Discovered new exit (range 13) 9555 | -9/Materials | Central database locked down 9775 | -9/Materials | Discovered new exit (range 19) 9826 | -9/Materials | Identified exit to Mines 9826 | -9/Materials | Identified exit to Materials 10119 | -9/Materials | First assault squad dispatched 10173 | -9/Materials | Reached level 8 10224 | -9/Materials | Destroyed 7 combat bots 10305 | -9/Materials | Repaired Med. Armor Plating 10339 | -9/Materials | Repaired Med. Armor Plating 10372 | -9/Materials | Repaired Med. Armor Plating 10973 | -9/Materials | Core integrity fell below 50% 11095 | -9/Materials | Build established: Tank 11218 | -9/Materials | Entered Mines 11220 | -9/Mines | Reached level 9 11236 | -9/Mines | Upgraded with Utility slot (x1) 11276 | -9/Mines | Deemed a non-threat by the Exiles lab entrance 11278 | -9/Mines | Discovered new exit (range 5) 11504 | -9/Mines | Discovered exit to Materials (range 13) 11683 | -9/Mines | Central database locked down 11791 | -9/Mines | Assembled infested the area 11852 | -9/Mines | Destroyed 9 combat bots 11928 | -9/Mines | Upgraded with Propulsion slot (x1) 12214 | -9/Mines | Discovered exit to Materials (range 5) 12281 | -9/Mines | Core integrity fell below 20% 12523 | -9/Mines | Reached level 10 12582 | -9/Mines | Build established: Mutant 12664 | -9/Mines | Entered Exiles 12693 | -9/Exiles | Discovered new exit (range 16) 12767 | -9/Exiles | Met 8R-AWN 12795 | -9/Exiles | Met EX-HEX 12856 | -9/Exiles | Met EX-BIN 12875 | -9/Exiles | Met EX-DEC 13179 | -9/Exiles | Aligned with FarCom system 13181 | -9/Exiles | Given EX-Vault access code 13228 | -9/Exiles | Opened EX-Vault 13310 | -9/Exiles | Warned to stay clear of 0b10 Research branches 13380 | -9/Exiles | Found Firepult 14084 | -9/Exiles | Visited The Gauntlet 14327 | -9/Exiles | Attacked by the Exiles 14432 | -9/Exiles | Destroyed 8R-AWN 14473 | -9/Exiles | Found Prototype Device 14473 | -9/Exiles | Identified AS-neutralizer No. 17b 14477 | -9/Exiles | Found Prototype Protection 14477 | -9/Exiles | Identified 8R-AWN's Armor/EX 14485 | -9/Exiles | Found Prototype Ballistic Gun 14485 | -9/Exiles | Identified 8R-AWN's Boregun 14493 | -9/Exiles | Found 8R-AWN's Boregun 14500 | -9/Exiles | Found Prototype Processor 14779 | -9/Exiles | Destroyed EX-HEX 14842 | -9/Exiles | Build established: Scavenger-Mutant 14852 | -9/Exiles | Destroyed EX-DEC 14882 | -9/Exiles | Destroyed EX-BIN 14894 | -9/Exiles | Found Prototype Device 14894 | -9/Exiles | Identified System Purifier 14898 | -9/Exiles | Identified Exp. Targeting Computer 15132 | -9/Exiles | Found Supersonic Drone Bay 15664 | -9/Exiles | Found Deploy-a-Sentry 15729 | -9/Exiles | Discovered new exit (range 12) 15735 | -9/Exiles | Left Exiles lab with Deploy-a-Sentry 15735 | -9/Exiles | Entered Mines 15770 | -8/Mines | NK-0LA came to Exiles' defense 15828 | -8/Mines | Reached level 11 15877 | -8/Mines | Destroyed NK-0LA 15916 | -8/Mines | DAS Turret deployed 15956 | -8/Mines | Discovered exit to Materials (range 9) 16011 | -8/Mines | Discovered exit to Materials (range 13) 16265 | -8/Mines | Entered Materials 16267 | -8/Materials | Reached level 12 16267 | -8/Materials | Upgraded with Utility slot (x1) 16498 | -8/Materials | Identified exit to Factory 16779 | -8/Materials | Reached level 13 17163 | -8/Materials | Repaired System Purifier 17266 | -8/Materials | Identified exit to Garrison 17269 | -8/Materials | Entered Garrison 17294 | -8/Garrison | Triggered checkpoint 17385 | -8/Garrison | Triggered checkpoint 17506 | -8/Garrison | Discovered new exit (range 11) 17638 | -8/Garrison | Triggered checkpoint 17660 | -8/Garrison | Discovered new exit (range 14) 17694 | -8/Garrison | Triggered checkpoint 17757 | -8/Garrison | Discovered new exit (range 13) 17770 | -8/Garrison | Installed Relay Interface Framework 17770 | -8/Garrison | Reached level 14 17800 | -8/Garrison | Garrison Relay disabled 17814 | -8/Garrison | Triggered checkpoint 17908 | -8/Garrison | Triggered checkpoint 18067 | -8/Garrison | Entered Materials 18352 | -8/Materials | Repaired Broken System Purifier 18679 | -8/Materials | Discovered exit to Factory (range 14) 18882 | -8/Materials | Repaired Broken System Purifier 18969 | -8/Materials | Repaired Broken Adv. Transmission Jammer 19569 | -8/Materials | Identified exit to Garrison 19625 | -8/Materials | Discovered exit to Factory (range 9) 19820 | -8/Materials | Discovered exit to Factory (range 7) 19894 | -8/Materials | Entered Garrison 19894 | -8/Garrison | Accompanied by 1 ally 19924 | -8/Garrison | Triggered checkpoint 20068 | -8/Garrison | Triggered checkpoint 20096 | -8/Garrison | Triggered checkpoint 20170 | -8/Garrison | Destroyed 8 combat bots 20194 | -8/Garrison | Triggered checkpoint 20221 | -8/Garrison | Garrison Relay disabled 20221 | -8/Garrison | Reached level 15 20223 | -8/Garrison | Upgraded with Utility slot (x1) 20279 | -8/Garrison | Discovered exit to Factory (range 14) 20380 | -8/Garrison | Triggered checkpoint 20442 | -8/Garrison | Discovered exit to Factory (range 13) 20454 | -8/Garrison | Expanded RIF knowledge: Coupler Efficiency 20478 | -8/Garrison | Triggered checkpoint 20493 | -8/Garrison | Garrison Relay disabled 20545 | -8/Garrison | Entered Factory 20681 | -7/Factory | Identified exit to Garrison 20906 | -7/Factory | Reached level 16 21006 | -7/Factory | Identified exit to Factory 21033 | -7/Factory | Fabricated Cmb. Airjet (x2) 21273 | -7/Factory | Discovered new exit (range 15) 21284 | -7/Factory | Identified exit to Lower Caves 21345 | -7/Factory | First assault squad dispatched 21386 | -7/Factory | Discovered new exit (range 7) 21399 | -7/Factory | Identified exit to Storage 21706 | -7/Factory | Central database locked down 21854 | -7/Factory | Fabricated Exp. Energy Well? 21987 | -7/Factory | Sucked down chute 21987 | -7/Factory | Entered Waste 21996 | -7/Waste | Spotted C-40 Crusher 21998 | -7/Waste | Spotted C-40 Crusher 21998 | -7/Waste | Spotted C-40 Crusher 22001 | -7/Waste | Destroyed C-40 Crusher 22001 | -7/Waste | Destroyed C-40 Crusher 22009 | -7/Waste | Destroyed C-40 Crusher 22013 | -7/Waste | Destroyed C-40 Crusher 22050 | -7/Waste | Spotted C-40 Crusher 22056 | -7/Waste | Destroyed C-40 Crusher 22082 | -7/Waste | Warlord forces began an assault 22120 | -7/Waste | Spotted C-40 Crusher 22129 | -7/Waste | Allies destroyed C-40 Crusher 22154 | -7/Waste | Discovered new exit (range 16) 22306 | -7/Waste | Identified exit to Factory 22345 | -7/Waste | Entered Factory 22345 | -7/Factory | Accompanied by 13 allies 22591 | -7/Factory | Repaired Broken Adv. Salvage Targeting Computer 22806 | -7/Factory | Entered Lower Caves 22806 | -7/Lower Caves | Accompanied by 11 allies 22807 | -7/Lower Caves | Encountered a Warlord checkpoint 22808 | -7/Lower Caves | Reached level 17 22810 | -7/Lower Caves | Learned Factory stockpile data 22899 | -7/Lower Caves | Attracted the attention of an 0b10 checkpoint 22920 | -7/Lower Caves | Spotted N3-S1Y(f) 22921 | -7/Lower Caves | Encountered a Master Thief 22923 | -7/Lower Caves | 8R-AWN's Boregun stolen by Master Thief 22926 | -7/Lower Caves | Destroyed N3-S1Y(f) 22988 | -7/Lower Caves | Spotted 9Q-CW2(f) 22990 | -7/Lower Caves | Encountered a Master Thief 22993 | -7/Lower Caves | Destroyed 9Q-CW2(f) 23000 | -7/Lower Caves | Spotted 8K-WKW(f) 23001 | -7/Lower Caves | Encountered a Master Thief 23021 | -7/Lower Caves | Allies destroyed 8K-WKW(f) 23104 | -7/Lower Caves | Spotted UD-ISK(f) 23105 | -7/Lower Caves | Encountered a Master Thief 23109 | -7/Lower Caves | Destroyed UD-ISK(f) 23117 | -7/Lower Caves | Discovered new exit (range 11) 23124 | -7/Lower Caves | Identified exit to Lower Caves 23141 | -7/Lower Caves | Entered another Lower Caves area 23141 | -7/Lower Caves | Accompanied by 8 allies 23189 | -7/Lower Caves | Encountered a Warlord checkpoint 23224 | -7/Lower Caves | Learned Factory emergency access door positions 23335 | -7/Lower Caves | Discovered new exit (range 4) 23347 | -7/Lower Caves | Found Alien Artifact 23347 | -7/Lower Caves | Identified Core Expander 23347 | -7/Lower Caves | Installed Core Expander, added new Weapon slot 23359 | -7/Lower Caves | Identified exit to Data Miner 23655 | -7/Lower Caves | Entered Data Miner 23655 | -7/Data Miner | Accompanied by 1 ally 23655 | -7/Data Miner | Discovered new exit (range 6) 23659 | -7/Data Miner | Identified exit to Proximity Caves 23667 | -7/Data Miner | Met Data Miner 23689 | -7/Data Miner | Learned location of Section 7 (-2) 23689 | -7/Data Miner | Acquired the access code to Warlord's prototype stash 23699 | -7/Data Miner | Received God Mode back door access code from Data Miner 23731 | -7/Data Miner | Interfaced with the Data Conduit 23906 | -7/Data Miner | Entered Proximity Caves 23908 | -6/Proximity Caves | Reached level 18 23920 | -6/Proximity Caves | Upgraded with Utility slot (x1) 23955 | -6/Proximity Caves | Spotted B-75 Beast 24005 | -6/Proximity Caves | Destroyed B-75 Beast 24095 | -6/Proximity Caves | Discovered exit to Factory (range 5) 24105 | -6/Proximity Caves | Entered Factory 24108 | -6/Factory | Loaded intel: 287 machine locations 24118 | -6/Factory | Identified exit to Lower Caves 24118 | -6/Factory | Identified exit to Extension 24231 | -6/Factory | Reached level 19 24289 | -6/Factory | Discovered new exit (range 8) 24361 | -6/Factory | Fabricated Kinetic Spear (x1) 24383 | -6/Factory | Entered Lower Caves 24500 | -6/Lower Caves | Encountered a Warlord checkpoint 24518 | -6/Lower Caves | Learned location of 1 exit from Factory 24550 | -6/Lower Caves | Attracted the attention of an 0b10 outpost 24567 | -6/Lower Caves | Discovered new exit (range 16) 24581 | -6/Lower Caves | Identified exit to Lower Caves 24582 | -6/Lower Caves | Entered another Lower Caves area 24695 | -6/Lower Caves | Encountered a Warlord checkpoint 24713 | -6/Lower Caves | Discovered new exit (range 17) 24722 | -6/Lower Caves | Identified exit to Zion 24812 | -6/Lower Caves | Entered Zion 24864 | -6/Zion | Discovered new exit (range 14) 24872 | -6/Zion | Identified exit to Proximity Caves 24921 | -6/Zion | RIF detected upon attempting to enter Zion 24921 | -6/Zion | Attacked by Zionites 24921 | -6/Zion | Spotted 9A-AZS(B) 24921 | -6/Zion | Spotted 2Y-VG2(B) 24938 | -6/Zion | Destroyed 2Y-VG2(B) 24967 | -6/Zion | Core integrity fell below 50% 24969 | -6/Zion | Destroyed 9A-AZS(B) 25139 | -6/Zion | Found Exp. Core Analyzer 25142 | -6/Zion | Found Exp. Signal Interpreter 25172 | -6/Zion | Upgraded with Power slot (x1) 25176 | -6/Zion | Found Exp. Melee Analysis Suite 25263 | -6/Zion | Found Prototype Device 25263 | -6/Zion | Identified Mobile Refinery Mk. CCLXVII 25319 | -6/Zion | Discovered new exit (range 3) 25323 | -6/Zion | Identified exit to Deep Caves 25335 | -6/Zion | Entered Deep Caves 25547 | -6/Deep Caves | Attacked by Z-Imprinter 25573 | -6/Deep Caves | Core integrity fell below 20% 25584 | -6/Deep Caves | Destroyed by Y7-ZYA(z) with Zionite Laser-S Last Messages --------------- 25555_ HV Slug penetrates Z-Imprinter. 25555_ HV Slug penetrates Wall. 25558_ HV Slug penetrates Z-Imprinter. 25558_ HV Slug penetrates Machine. 25558_ HV Slug penetrates Wall. 25561_ HV Slug penetrates Z-Imprinter. 25561_ HV Slug penetrates Wall. 25567_ Upgraded: Core Integrity (+150) 25567_ HV Slug penetrates Wall. 25567_ HV Slug penetrates Machine. 25570_ HV Slug penetrates Z4-85N(z). 25570_ HV Slug penetrates Wall. 25576_ HV Slug penetrates Z4-85N(z). 25576_ HV Slug penetrates Wall. 25579_ HV Slug penetrates Z4-85N(z). 25579_ HV Slug penetrates Wall. 25582_ HV Slug penetrates Y7-ZYA(z). 25582_ Y7-ZYA(z) suffers critical hit. 25582_ Destroyed Phase Shifter. 25582_ HV Slug penetrates Wall. Map ----- +----------------------------------------------------+ | | | | | | | | | | | | | | | | | | | | | ?????????????????????????????????????????????????? | | ####?????????????????????????????????????????????? | | ????????????????????????????####?????????????? | | ?????###????#####?????????## ##????????????? | | ##?### ##???# #;;###?????## ###########??? | | ## # #?#?#;; ##????# #??? | | ###;# #???## #??? | | #???# ########## #??? | | % #???# ##????????# #??? | | % ##???# ##????????# #??# | | %%%##???# ##??????## #?## | | " %% ;##### #?????## ### | | " ;#;## #?????# | | " %% ####### | | " %% z | | % @ z ## ####### | | " % ;#### ### #?????## | | " #;I ### #??????# | | " ### " ## ##?????# | | " #?# " #?????## | | ### " ##?????### | | ## #### #???????# | | ###### ##??# #???????# | | #????####???# #???????# | | ##???????????# #????#### | | ##???????????# #???## | | ? #???????????# #???# | | ??? #???????????# #???# | | ?????? ##???????????# #???## | | ?????? ##????????????# #????## | | ?????? ##????????????# #?????#### | | ?????? ##???????????# #????????# | | ????? #???????????# #????????? | | ????? #???????????# #????????? | | ????? ##???????????# #????????? | | ????? #????????????# #????????? | | ????? ##???????????# #????????? | | ????? #???????????# #????????? | | ?????? ##??????????# ##???????? | | ?????? #??????????# #???????? | +----------------------------------------------------+ Best States ------------- Heat Dissipation 43 Energy Generation 36 Energy Capacity 2395 Matter Stores 319 Matter Capacity 500 Sight Range 17 Robot Scan Range 14 Terrain Scan Range 20 Terrain Scan Density 210 Jamming Range 16 Power Amplification 30 Armor Coverage 1450 Resistance: EX 90 Propulsion Shielding 33 Weapon Cycling 25 Evasion (%) 52 Targeting Accuracy 12 Melee Accuracy 12 Core Analysis 15 Armor Integrity Analysis 66 Recoil Reduction 4 Salvage Targeting 1 Offensive Hacking 15 Defensive Hacking 21 Item Schematics ----------------- Mining Laser | -10/Materials | Hacked Mak. Axe | -9/Materials | Scanalyzed Imp. EM Shotgun | -9/Materials | Scanalyzed Mni. Grenade Launcher | -9/Materials | Extracted Targeting Computer | -9/Materials | Extracted Mining Claw | -9/Materials | Extracted Imp. Terrain Scanner | -9/Materials | Extracted Salvage Targeting Computer | -9/Mines | Hacked System Purifier | -8/Materials | Scanalyzed Adv. Weapon Cycler | -8/Materials | Scanalyzed Cmb. Airjet | -8/Materials | Scanalyzed Exp. Energy Well | -8/Materials | Scanalyzed Adv. Transmission Jammer | -8/Materials | Scanalyzed Adv. Power Amplifier | -8/Materials | Scanalyzed Hacking Suite | -8/Materials | Hacked System Shield | -8/Materials | Hacked Imp. Datajack | -8/Materials | Hacked Hardlight Generator | -8/Materials | Hacked System Backup Module | -7/Factory | Hacked Adv. Salvage Targeting Computer | -7/Factory | Scanalyzed Adv. Melee Analysis Suite | -7/Factory | Hacked Hvy. Treads | -7/Factory | Hacked Lgt. Angular Momentum Engine | -7/Factory | Hacked Combat Drone Bay | -7/Data Miner | Free Lgt. Regenerative Plating | -7/Data Miner | Free Cmb. Gravmag System | -7/Data Miner | Free Cloaking Device | -7/Data Miner | Free Kinetic Spear | -7/Data Miner | Free Imp. Actuator Array | -6/Factory | Scanalyzed Plasma Rifle | -6/Factory | Extracted Robot Schematics ------------------ O-16 Technician | -10/Materials | Hacked G-50 Soldier | -7/Data Miner | Free S-27 Virus | -7/Data Miner | Free G-67 Veteran | -7/Data Miner | Free L-41 Fighter | -7/Data Miner | Free H-66 Slayer | -7/Data Miner | Free X-72 Disruptor | -7/Data Miner | Free P-70 Sage | -7/Data Miner | Free I-36 Angel | -7/Data Miner | Free Fabricated ------------ Cmb. Airjet | x2 | -7/Factory Exp. Energy Well | x1 | -7/Factory Kinetic Spear | x1 | -6/Factory Alien Tech Used ----------------- Core Expander Achievements -------------- None Challenges ------------ None RPGLIKE | -11 -10 -10 -9 -9 -9 -8 -8 -8 -8 -8 -7 -7 -7 -7 -7 -7 -6 -6 -6 -6 -6 -6 --------- Run | Scr Mat Min Mat Min Exi Min Mat Gar Mat Gar Fac Was Fac Low Low Dat Pro Fac Low Low Zio Dee Levels Raised 18 | . 2 . 5 2 . 1 2 1 . 1 1 . . 1 . . 1 1 . . . . XP Earned 31105 | 3000 3095 959 7872 1669 117 2405 2821 823 993 538 2052 71 494 447 450 511 843 977 286 170 170 342 XP Spent 30000 | 2300 3675 . 5850 3100 935 600 3925 . 500 2900 1450 . . . . . 3200 600 . . 500 465 Upgrades 54 | 6 13 . 4 2 11 4 4 . 1 1 2 . . . . . 1 1 . . 1 3 Power Slot 1 | . . . . . . . . . . . . . . . . . . . . . 1 . Propulsion Slot 2 | 1 . . . 1 . . . . . . . . . . . . . . . . . . Utility Slot 10 | 1 2 . 3 1 . . 1 . . 1 . . . . . . 1 . . . . . Weapon Slot 2 | 1 1 . . . . . . . . . . . . . . . . . . . . . Core Integrity 15 | . 1 . . . 11 . . . . . . . . . . . . . . . . 3 Heat Dissipation 3 | . 3 . . . . . . . . . . . . . . . . . . . . . Energy Generation 1 | . . . . . . 1 . . . . . . . . . . . . . . . . Mass Support 2 | . 1 . . . . . . . . . . . . . . . . 1 . . . . Inventory Capacity 5 | 2 . . 1 . . . 1 . . . 1 . . . . . . . . . . . Sight Range 1 | . 1 . . . . . . . . . . . . . . . . . . . . . Sensor Range 7 | . 1 . . . . 3 2 . . . 1 . . . . . . . . . . . Terrain Scan Density 2 | 1 1 . . . . . . . . . . . . . . . . . . . . . Hack Attack % 1 | . 1 . . . . . . . . . . . . . . . . . . . . . Hack Defense % 2 | . 1 . . . . . . . 1 . . . . . . . . . . . . . Protomatter Created 3555 | 61 279 . 488 140 106 178 252 287 523 361 334 89 . 66 99 80 50 84 31 . 47 . Integrity Restored 7412 | 97 597 155 1013 326 318 534 739 851 621 374 616 143 6 129 39 240 150 247 76 . 141 . Core 4698 | 87 435 67 685 286 318 534 411 286 183 200 326 10 6 50 14 240 150 199 70 . 141 . Parts 2714 | 10 162 88 328 40 . . 328 565 438 174 290 133 . 79 25 . . 48 6 . . . Protomatter Decayed 1283 | 33 56 17 135 33 . . . . 352 139 125 2 28 97 266 . . . . . . . Game ------ Seed XenonReactiveSteel Manual? 0 Play Time 03:35:21 Cumulative 253.4 hours Start 2020.09.17 @ 10:31:26 End 2020.09.17 @ 15:16:27 Sessions 1 Manual Loads 0 Difficulty Rogue Special Mode Winter2019/RPGLIKE Game No. 102 Rogue 102 Adventurer 0 Explorer 0 Win Type - Total 3 Types 2/0/0/1/0/0/0/0/0 Lore% 83 Gallery% 84 Achievement% 69 Wizard Run 0 Options --------- ASCII 0 Keyboard 0 Movement Numpad Keybinds 0 Fullscreen 1 Font 18/SmallcapsGlow Map View 76x50 Tactical HUD 1 Map Filters NONE Filters NONE Steam 1 RUN: 60e3e1be-a359-4b54-b11a-cdf617327c2f